Cogmind - Beta 13 @@@ ROGUE MODE // 2024.04.04 @ 01:32:07 Player: Camoedine Result: Smashed by cave-in Performance ------------- Evolutions (1) 500 Regions Visited (3) 600 Robots Destroyed (27) 135 Value Destroyed (566) 566 Prototype IDs (0) 0 Alien Tech Used (0) 0 Bonus (0) 0 TOTAL SCORE: 1801 Bonus ------- None Cogmind --------- Core Integrity 0/400 Matter 299/300 Energy 100/100 System Corruption 20% Temperature Cool (0) Movement Core (200) Ox3 Location -9/Mines Parts ------- > --- POWER (1) -------- (None) > --- PROPULSION (2) --- (None) > --- UTILITY (3) ------ Medium Storage Unit > --- WEAPON (3) ------- (None) > --- INVENTORY (10) --- Improved Treads Improved Treads Weight Redist. System Visual Processing Unit Light Armor Plating Peak State ------------ > --- POWER ------------ Light Ion Engine > --- PROPULSION ------- Improved Treads Improved Treads > --- UTILITY ---------- Medium Storage Unit Weight Redist. System Hacking Suite > --- WEAPON ----------- Beam Rifle Particle Gun Light Assault Rifle > --- INVENTORY -------- Light Ion Engine Light Treads Improved Treads Improved Treads Compact Wheel Compact Wheel Medium Storage Unit Weight Redist. System Light Armor Plating [Rating: 17] Favorites ----------- Power Light Ion Engine Engine Light Ion Engine Propulsion Light Treads Treads Light Treads Leg Aluminum Leg Utility Medium Storage Unit Device Improved Terrain Scanner Storage Medium Storage Unit Processor Visual Processing Unit Hackware Hacking Suite Weapon Light Assault Rifle Energy Gun Medium Laser Ballistic Gun Light Assault Rifle Build | -11 -10 -9 -9 ------- Run | Yrd Mat Mat Min Slots Evolved 2 | . . 2 . Power . | . . . . Propulsion . | . . . . Utility 1 | . . 1 . Weapon 1 | . . 1 . Parts Attached 30 | 6 6 17 1 Power 5 | 1 1 3 . Engine 5 | 1 1 3 . Core . | . . . . Reactor . | . . . . Propulsion 6 | 2 . 4 . Treads 4 | 2 . 2 . Leg 2 | . . 2 . Wheel . | . . . . Hover . | . . . . Flight . | . . . . Utility 8 | 1 4 3 . Device 3 | . 2 1 . Storage 3 | 1 1 1 . Processor 1 | . 1 . . Hackware 1 | . . 1 . Protection . | . . . . Artifact . | . . . . Weapon 11 | 2 1 7 1 Energy Gun 9 | 1 1 6 1 Energy Cannon . | . . . . Ballistic Gun 2 | 1 . 1 . Ballistic Cannon . | . . . . Launcher . | . . . . Special Weapon . | . . . . Impact Weapon . | . . . . Slashing Weapon . | . . . . Piercing Weapon . | . . . . Special Melee Weapon . | . . . . Unidentified Prototypes . | . . . . Parts Lost 17 | . . 9 8 Power 3 | . . 2 1 Propulsion 4 | . . 2 2 Utility 3 | . . 1 2 Weapon 7 | . . 4 3 Highest Loss Streak 8 | . . 7 8 To Critical Strikes . | . . . . Average Slot Usage (%) 93 | . 98 94 67 Engine 11 | . 14 10 5 Treads 17 | . 28 11 16 Leg 5 | . . 9 . Device 9 | . 9 10 5 Storage 11 | . 14 11 11 Processor 1 | . 3 . . Hackware 6 | . . 10 5 Energy Gun 16 | . 14 17 13 Ballistic Gun 13 | . 14 13 8 Naked Turns . | . . . . Heaviest Build 24 | 13 17 24 20 Greatest Support 52 | 40 40 52 52 Greatest Overweight (x) 5 | . . 5 . Average Overweight (x) . | . . . . Largest Inventory Capacity 10 | 8 10 10 10 Average Capacity 9 | 7 8 10 10 Most Carried 10 | 8 8 10 6 Average Carried 6 | 5 7 7 5 Final Capacity 10 | 8 10 10 10 Final Carried 8 | 8 7 6 5 Class Distribution -------------------- 41% | Mutant 23% | Scavenger-Gunner 17% | Scavenger-Skirmisher 10% | Skirmisher 6% | Scavenger-Mutant Dominant Class ---------------- Mutant | -10/Materials Scavenger-Skirmisher | -9/Materials Scavenger-Gunner | -9/Mines Resources | -11 -10 -9 -9 ----------- Run | Yrd Mat Mat Min Matter Collected 615 | 240 113 262 . Remotely . | . . . . Salvage Created 890 | 62 256 572 . Parts 62 | 2 16 44 . Haulers Intercepted . | . . . . Recyclers Shooed 2 | . 2 . . Parts Field Recycled . | . . . . Retrieved Matter . | . . . . Parts Self-Destructed . | . . . . Prevented . | . . . . Kills | -11 -10 -9 -9 ------- Run | Yrd Mat Mat Min Combat Hostiles Destroyed 14 | . 3 11 . Guns 13 | . 3 10 . Classes Destroyed 10 | 1 4 5 . Worker 2 | . . 2 . Builder 2 | . 1 1 . Tunneler 1 | . 1 . . Recycler 3 | 1 1 1 . Operator 1 | . . 1 . Watcher 4 | . 2 2 . Swarmer 4 | . . 4 . Grunt 6 | . 3 3 . Duelist 1 | . . 1 . Sentry 3 | . . 3 . Best Kill Streak 6 | 1 4 6 . Combat Bots Only 4 | . 1 4 . Max Kills in Single Turn 1 | 1 1 1 . Gunslinging . | . . . . Exploded . | . . . . Melee . | . . . . Uniques/NPCs Destroyed . | . . . . Combat | -11 -10 -9 -9 -------- Run | Yrd Mat Mat Min Hostile Shots Fired 169 | . 25 102 42 Missed 37 | . 8 23 6 Damage Taken 2344 | . 282 1080 982 Core 447 | . 20 172 255 Absorbed by Shields . | . . . . Core Remaining (%) 96 | 100 92 . . Volleys Fired 105 | 3 29 61 12 Largest 3 | 2 2 3 1 Hottest 141 | 70 70 141 56 Shots Fired 219 | 6 57 145 11 Gun 219 | 6 57 145 11 Cannon . | . . . . Launcher . | . . . . Special . | . . . . Kinetic 96 | 3 30 63 . Thermal 123 | 3 27 82 11 Explosive . | . . . . Electromagnetic . | . . . . Robot Hit Streak 15 | 5 15 13 4 Robot Miss Streak 7 | . 5 7 2 Penetration Max . | . . . . Secondary Targets 2 | . . 2 . Max Gunslinging Chain 1 | . . 1 . Shots Hit Robots 126 | 5 35 80 6 Core Hits 49 | 2 16 29 2 Critical Kills . | . . . . Critical Parts Destroyed 1 | . 1 . . Critical Strikes 7 | . 2 3 2 Burn 6 | . 1 3 2 Destroy 1 | . 1 . . Melee Attacks . | . . . . Impact . | . . . . Slashing . | . . . . Piercing . | . . . . Sneak Attacks . | . . . . Combat Hostiles . | . . . . Follow-up Attacks . | . . . . Damage Inflicted 1623 | 53 508 975 87 Guns 1450 | 53 365 945 87 Cannons . | . . . . Explosions 143 | . 143 . . Melee . | . . . . Ramming 30 | . . 30 . Kinetic 409 | 27 138 244 . Thermal 1041 | 26 227 701 87 Explosive . | . . . . Electromagnetic 143 | . 143 . . Impact . | . . . . Slashing . | . . . . Piercing . | . . . . Highest Corruption 20 | . 1 . 20 Average Corruption 4 | . 1 . 19 Corruption Purged . | . . . . Corruption Blocked . | . . . . Effects 9 | . 4 . 5 Message Errors 1 | . 1 . . Matter Fused 2 | . . . 2 Heat Flow Errors 1 | . 1 . . Energy Discharges 1 | . . . 1 Parts Rejected 1 | . . . 1 Data Loss (minor) 1 | . 1 . . Misfires 1 | . 1 . . Weapon Failures 1 | . . . 1 Overload Shots . | . . . . Overflow Damage . | . . . . Projectiles . | . . . . Explosions . | . . . . Melee . | . . . . Knockbacks 1 | . . 1 . Impact 1 | . . 1 . Kinetic . | . . . . Secondary . | . . . . Self-Inflicted Damage 34 | . 34 . . Shots 1 | . 1 . . Rammed . | . . . . Targets Rammed 6 | . . 6 . Kicked 6 | . . 6 . Crushed . | . . . . Highest Temperature 380 | 50 300 380 56 Average Temperature 89 | 26 47 112 27 Received Heat Transfer 579 | . 177 246 156 Effects 3 | . . 3 . Interference 2 | . . 2 . Matter Decay 1 | . . 1 . Siege Activations . | . . . . Robots Corrupted . | . . . . Combat Hostiles . | . . . . Parts Fried . | . . . . Impact Corruptions . | . . . . Robots Melted 1 | . . 1 . Combat Hostiles 1 | . . 1 . Parts Melted 5 | . . 5 . Heat Transferred 3221 | 74 740 2037 370 Parts Sabotaged . | . . . . Parts Stolen . | . . . . Parts Stripped . | . . . . Power Chain Reactions . | . . . . Alert | -11 -10 -9 -9 ------- Run | Yrd Mat Mat Min Peak Influence 204 | 5 113 204 46 Initial 46 | . 3 12 46 Average 77 | 3 71 103 24 Maximum Alert Level 1 | . . 1 . Low Security (%) 96 | 100 100 93 100 Level 1 3 | . . 6 . Level 2 . | . . . . Level 3 . | . . . . Level 4 . | . . . . Level 5 . | . . . . High Security . | . . . . Max Security . | . . . . Squads Dispatched 3 | . 2 1 . Investigation . | . . . . Extermination . | . . . . Reinforcement 3 | . 2 1 . Assault . | . . . . Garrison . | . . . . Intercept . | . . . . Searches Triggered . | . . . . Construction Impeded . | . . . . Haulers Reinforced . | . . . . Active Scanning Responses . | . . . . Cargo Convoy Interrupts . | . . . . Stealth | -11 -10 -9 -9 --------- Run | Yrd Mat Mat Min Distress Signals 3 | . 1 2 . Communications Jammed . | . . . . Distress Signals . | . . . . Times Spotted 47 | . 9 27 11 Peak Tracking Total 9 | . 4 4 9 Tactical Retreats . | . . . . Traps | -11 -10 -9 -9 ------- Run | Yrd Mat Mat Min Traps Triggered . | . . . . Indirectly . | . . . . Trap Hack Attempts . | . . . . Triggered . | . . . . Disarmed 4 | . 4 . . Reprogrammed . | . . . . Reused . | . . . . Traps Extracted . | . . . . Installed . | . . . . Triggered . | . . . . Machines | -11 -10 -9 -9 ---------- Run | Yrd Mat Mat Min Machines Disabled 1 | . 1 . . Max in Single Turn 1 | . 1 . . Machines Repaired . | . . . . Machines Dismantled . | . . . . Machines Sabotaged . | . . . . Overloaded Fab Kills . | . . . . Hacking | -11 -10 -9 -9 --------- Run | Yrd Mat Mat Min Machines Accessed 1 | . 1 . . Terminals 1 | . 1 . . Fabricators . | . . . . Repair Stations . | . . . . Recycling Units . | . . . . Scanalyzers . | . . . . Garrison Access . | . . . . Total Hacks 5 | . 5 . . Successful 4 | . 4 . . Failed 1 | . 1 . . Catastrophic 1 | . 1 . . Database Lockouts . | . . . . Manual . | . . . . Terminals 5 | . 5 . . Fabricators . | . . . . Repair Stations . | . . . . Recycling Units . | . . . . Scanalyzers . | . . . . Garrison Access . | . . . . Terminal Hacks 4 | . 4 . . Record 1 | . 1 . . Emergency Access Points 1 | . 1 . . Alert Level 1 | . 1 . . Disarm Traps 1 | . 1 . . Fabricator Hacks . | . . . . Repair Station Hacks . | . . . . Recycling Unit Hacks . | . . . . Scanalyzer . | . . . . Garrison Access Hacks . | . . . . Unauthorized Hacks . | . . . . Terminals . | . . . . Fabricators . | . . . . Repair Stations . | . . . . Recycling Units . | . . . . Scanalyzers . | . . . . Garrison Access . | . . . . Data Cores Recovered 1 | . . 1 . Used . | . . . . Hacking Detections 1 | . 1 . . Full Trace Events 1 | . 1 . . Feedback Events . | . . . . Feedback Blocked . | . . . . Robot Schematics Acquired . | . . . . Robots Built . | . . . . Authchips . | . . . . Time . | . . . . Total Robot Build Rating . | . . . . Part Schematics Acquired . | . . . . Parts Built . | . . . . Authchips . | . . . . Time . | . . . . Total Part Build Rating . | . . . . Parts Repaired . | . . . . Time . | . . . . Parts Recycled . | . . . . Recycled Matter . | . . . . Retrieved Matter . | . . . . Retrieved Components . | . . . . Parts Scanalyzed . | . . . . Part Schematics Acquired . | . . . . Parts Damaged . | . . . . Bothacking | -11 -10 -9 -9 ------------ Run | Yrd Mat Mat Min Used RIF Installer . | . . . . Robots Hacked . | . . . . Non-combat . | . . . . Combat . | . . . . Robot Hacks Applied . | . . . . Relay Couplers Released . | . . . . Fabnet Peak Effective % . | . . . . Robots Rewired . | . . . . Allies Hacked . | . . . . Hacks Repelled . | . . . . Allies | -11 -10 -9 -9 -------- Run | Yrd Mat Mat Min Total Allies . | . . . . Largest Group . | . . . . Highest-Rated Group . | . . . . Highest-Rated Ally . | . . . . Total Orders . | . . . . Ally Attacks . | . . . . Total Damage . | . . . . Kills . | . . . . Allies Corrupted . | . . . . Allies Melted . | . . . . Intel | -11 -10 -9 -9 ------- Run | Yrd Mat Mat Min Robot Analysis Total . | . . . . Derelict Logs Recovered . | . . . . Drone Launches . | . . . . Drone Recoveries . | . . . . Exploration | -11 -10 -9 -9 ------------- Run | Yrd Mat Mat Min Turns Passed 1452 | 121 423 758 150 Spaces Moved 607 | 70 205 291 41 Core 25 | 16 . 9 . Treads 476 | 54 205 176 41 Legs 106 | . . 106 . Wheels . | . . . . Hover . | . . . . Flight . | . . . . Fastest Speed 50 | 50 160 160 160 Average Speed 164 | 134 160 175 160 Slowest Speed 300 | 160 160 300 160 Overloaded Moves . | . . . . Propulsion Burnouts . | . . . . Robots Hopped . | . . . . Cave-ins Triggered 3 | . . . 3 Exploration Rate (%) 22 | 4 38 28 21 Regions Visited 3 Branch Regions 1 Pre-discovered Areas . | . . . . Known Exits Taken . | . . . . Unknown Exits Taken 3 | 1 1 1 . Scrap Searched 1 | . . . 1 Spaces Dug . | . . . . Terrain Destroyed . | . . . . Melee . | . . . . Projectile . | . . . . AOE . | . . . . Terrain Rammed . | . . . . Walls Destroyed . | . . . . Machines Disabled . | . . . . Actions | -11 -10 -9 -9 --------- Run | Yrd Mat Mat Min Total 882 | 90 249 429 114 Wait 88 | . . 28 60 Move 604 | 69 204 290 41 Hop . | . . . . Pick Up 34 | 12 5 17 . Fast Attach 4 | 2 1 1 . Attach 16 | 4 . 11 1 Detach 1 | . . 1 . Swap 10 | . 5 5 . Drop 14 | . 5 9 . Fire 105 | 3 29 61 12 Melee . | . . . . Ram . | . . . . Kick 6 | . . 6 . Crush . | . . . . Escape Stasis . | . . . . Rewire . | . . . . Trap . | . . . . Miscellaneous . | . . . . Route ------- -11/Scrapyard -10/Materials (discovered 3 exits: [*Mat x2] / [*Min]) -9/Materials -9/Mines History --------- Turn | Location | Event 2 | -11/Scrapyard | Met Revision 17 7 | -11/Scrapyard | Discovered new exit (range 15) 122 | -11/Scrapyard | Entered Materials 320 | -10/Materials | Discovered new exit (range 8) 330 | -10/Materials | Build established: Mutant 386 | -10/Materials | Discovered new exit (range 10) 521 | -10/Materials | Discovered new exit (range 7) 545 | -10/Materials | Entered another Materials area 545 | -9/Materials | Evolved 2 slots: Utility x1, Weapon x1 1052 | -9/Materials | Lost 7 parts (1p2n1u3w) 1218 | -9/Materials | Discovered new exit (range 8) 1303 | -9/Materials | Entered Mines 1341 | -9/Mines | Assembled infested the area 1356 | -9/Mines | Build established: Scavenger-Gunner 1382 | -9/Mines | Crushed by falling debris 1382 | -9/Mines | Core integrity fell below 50% 1382 | -9/Mines | System corruption reached 10% 1395 | -9/Mines | Crushed by falling debris 1436 | -9/Mines | Core integrity fell below 20% 1454 | -9/Mines | Crushed by falling debris 1454 | -9/Mines | Smashed by cave-in Last Messages --------------- 01411_ R-06 Scavenger collects Particle Gun. 01412_ The unstable cave ceiling collapses. 01413_ U-05 Engineer builds a Wall. 01416_ U-05 Engineer lays Concrete. 01417_ U-05 Engineer builds a Wall. 01424_ The unstable cave ceiling collapses. 01427_ System corrupted: Matter fused (-6). 01428_ B-36 Bruiser heat short circuits Lgt. Treads. 01431_ B-36 Bruiser heat short circuits Rnf. Ion Engine. 01433_ B-36 Bruiser heat damages Broken Lgt. Treads. 01436_ as-17215 sneak attacks. 01436_ R-06 Scavenger knocked back. 01441_ Imp. Treads destroyed. 01443_ System corrupted: Energy discharge (-34). 01445_ as-17215 system corrupted by crushing effect. 01445_ as-17215 knocked back. 01451_ as-17215 sneak attacks. 01451_ T-07 Excavator system corrupted by crushing effect. 01454_ The unstable cave ceiling collapses. 01454_ Crushed by falling debris. Map ----- +----------------------------------------------------+ | ?????????????????????????????????????????????????? | | ?????????????????????????????????????????????????? | | ?????????????????????????????????????????????????? | | ?????????????????????????????????????????????????? | | ?????????????????????????????????????????????????? | | ?????????????????????????????????????????????????? | | ?????????????????????????????????????????????????? | | ?????????????????????????????????????????????????? | | ??????????????????## ????????????????????????????? | | ???????####??????? ???????????????????????????? | | ??????## ###????? """???????????????????????????? | | ??????# ##???? ""????????????????????????????? | | ?????## ##??? ""????????????????????????????? | | ?????# """ #??? ????????????????????????????? | | ????## """ #???# ????????????????????????????? | | ##### """ #???# #????????????????????????????? | | #???# #????????????????????????????? | | ## ##### ##????###??#?????????????????? | | ## ###### #???# ## ##????????????????? | | ?## ##????# #### #????????????????? | | ??####?????# ### # #???????????????????? | | ???????????## #### a #????????????????????? | | ????????????###### ##?????????????????????? | | ????????????????# b # ###???????????????????? | | ????????????????# # # ##??????????????????? | | ????????????????# ###@t # #????????????????? | | ????????????????# ##g#### #???????????????? | | ????????????????## # # % u % ##???????????????? | | ????????????????# #### ##???????????????? | | ????????????????# # # #???????????????? | | ?????????????? %%% ## ?????????????? | | ???????????? ## # ####### ???????????? | | ??????????? ???##### # ####???????????????????? | | ?????????? ????????##%# ###??????????????????????? | | ???????????????????##$###????????????????????????? | | ???????????????????## ???????????????????????????? | | ????????????????????##???????????????????????????? | | ?????????????????????????????????????????????????? | | ?????????????????????????????????????????????????? | | ?????????????????????????????????????????????????? | | ?????????????????????????????????????????????????? | | ?????????????????????????????????????????????????? | | ?????????????????????????????????????????????????? | | ?????????????????????????????????????????????????? | | ?????????????????????????????????????????????????? | | ?????????????????????????????????????????????????? | | ?????????????????????????????????????????????????? | | ?????????????????????????????????????????????????? | | ?????????????????????????????????????????????????? | | ?????????????????????????????????????????????????? | +----------------------------------------------------+ Best States ------------- Heat Dissipation 35 Energy Generation 12 Energy Capacity 265 Matter Stores 300 Matter Capacity 300 Sight Range 18 Terrain Scan Range 16 Terrain Scan Density 10 Additional Mass Support 6 Evasion (%) 50 Recoil Reduction 2 Offensive Hacking 10 Item Schematics ----------------- None Robot Schematics ------------------ None Fabricated ------------ Nothing Alien Tech Used ----------------- None Achievements -------------- Unlikely Earthworm Challenges ------------ None Game ------ Seed PowerEncryptedNullifier Manual? 0 Play Time 00:18:18 Cumulative 1.9 hours Start 2024.04.04 @ 01:15:16 End 2024.04.04 @ 01:32:07 Sessions 1 Manual Loads 0 Difficulty Rogue Special Mode None Game No. 4 Rogue 4 Adventurer 0 Explorer 0 Win Type - Total 0 Types 0/0/0/0/0/0/0/0/0 Lore% 1 Gallery% 5 Achievement% 6 Wizard Run 0 Options --------- Layout 0 ASCII 0 Keyboard 0 Movement Mouse Keybinds 0 Fullscreen 2 Font 24/X11 Map View 76x50 Zoom Use 0% Tactical HUD 1 Map Filters NONE Filters NONE Steam 1 RUN: 2e717aa1-2b18-499d-b7ae-877026b367e2